bitfinex/quotes_ETHUSD_20250430
["timestamp","ask_amount","ask_price","bid_price","bid_amount"]
[1745983634575,6.9832,1804.9,1804.5,0.60960172]
[1745983634795,6.9832,1804.9,1804.4,6.09601724]
[1745983636311,6.9832,1804.9,1804.4,0.55422704]
[1745983636492,6.9832,1804.9,1804.3,10.02961679]
[1745983640919,6.9832,1804.9,1804.3,15.57182812]
[1745983641119,6.9832,1804.9,1804.3,10.02944496]
[1745983641511,6.9832,1804.9,1804.4,5.59738357]
[1745983641709,6.9832,1804.9,1804.4,5.54197058]
[1745983642020,6.9832,1804.9,1804.4,5.5973828]
[1745983642179,6.9832,1804.9,1804.4,7.16006517]
[1745983642986,6.9832,1804.9,1804.4,7.10465295]
[1745983644223,6.9832,1804.9,1804.4,1.56268237]
[1745983645522,6.15,1804.9,1804.6,0.8313]
[1745983645912,0.67691608,1804.8,1804.6,0.8313]
[1745983646113,0.67691608,1804.8,1804.6,1.46859497]
[1745983646314,6.15,1804.9,1804.6,1.46859497]
[1745983646630,0.67691608,1804.7,1804.6,1.46859497]
[1745983647317,6.15,1804.9,1804.6,1.46859497]
[1745983647622,0.67691608,1804.7,1804.6,1.46859497]
[1745983647822,6.15,1804.9,1804.6,1.46859497]
[1745983648022,0.67691608,1804.7,1804.6,1.46859497]
[1745983648221,6.15,1804.9,1804.6,1.46859497]
[1745983648422,0.67691608,1804.7,1804.6,1.46859497]
[1745983648925,6.15,1804.9,1804.6,1.46859497]
[1745983649131,0.67691608,1804.7,1804.6,1.46859497]
[1745983649425,6.15,1804.9,1804.6,1.46859497]
[1745983649742,6.15,1804.9,1804.6,0.8313]
[1745983649906,0.67691608,1804.8,1804.6,0.8313]
[1745983650235,6.15,1804.9,1804.6,0.8313]
[1745983650434,0.67691608,1804.7,1804.6,0.8313]
[1745983650623,6.913,1804.9,1804.5,3.70980754]
[1745983651132,0.67691608,1804.8,1804.5,3.70980754]
[1745983651495,6.913,1804.9,1804.5,3.70980754]
[1745983651704,0.67691608,1804.7,1804.5,3.70980754]
[1745983651896,6.913,1804.9,1804.5,3.70980754]
[1745983652096,0.67691608,1804.6,1804.5,3.70980754]
[1745983652305,6.913,1804.9,1804.5,4.31592653]
[1745983652508,0.67691608,1804.6,1804.5,3.70980754]
[1745983652709,6.913,1804.9,1804.5,3.70980754]
[1745983652911,0.67691608,1804.6,1804.5,3.70980754]
[1745983653128,6.913,1804.9,1804.4,4.49850754]
[1745983653423,0.67691608,1804.6,1804.4,4.49850754]
[1745983653624,6.913,1804.9,1804.4,5.50256623]
[1745983653825,0.67691608,1804.5,1804.4,5.50256623]
[1745983654436,6.913,1804.9,1804.4,5.50256623]
[1745983654619,0.67691608,1804.5,1804.4,5.50256623]
[1745983654969,6.913,1804.9,1804.4,5.50256623]
[1745983655230,0.67691608,1804.5,1804.4,5.50256623]
[1745983655443,6.913,1804.9,1804.4,5.50256623]
[1745983655731,6.913,1804.9,1804.4,4.49850754]
[1745983655907,0.67691608,1804.8,1804.4,0.7887]
[1745983656107,6.913,1804.9,1804.4,0.7887]
[1745983656337,0.67691608,1804.7,1804.4,0.7887]
[1745983656533,6.913,1804.9,1804.4,0.7887]
[1745983656709,0.67691608,1804.6,1804.4,0.7887]
[1745983656910,6.913,1804.9,1804.4,0.7887]
[1745983657228,0.67691608,1804.5,1804.4,0.7887]
[1745983657420,6.913,1804.9,1804.4,0.7887]
[1745983657931,0.67691608,1804.8,1804.4,0.7887]
[1745983658336,6.913,1804.9,1804.4,0.7887]
[1745983658634,0.67691608,1804.7,1804.4,0.7887]
[1745983658833,6.913,1804.9,1804.4,0.7887]
[1745983659337,0.67679874,1804.8,1804.4,0.7887]
[1745983659630,6.913,1804.9,1804.4,0.7887]
[1745983659837,0.67679874,1804.7,1804.4,0.7887]
[1745983660032,6.913,1804.9,1804.4,1.79275869]
[1745983660214,0.67679874,1804.6,1804.4,1.79275869]
[1745983660415,6.913,1804.9,1804.4,1.79275869]
[1745983660614,0.67679874,1804.5,1804.4,1.79275869]
[1745983660815,6.913,1804.9,1804.4,1.79275869]
[1745983661034,0.67679874,1804.5,1804.4,0.7887]
[1745983661241,6.913,1804.9,1804.4,0.7887]
[1745983661437,0.67679874,1804.5,1804.4,0.7887]
[1745983661609,3.0,1804.8,1804.4,0.7887]
[1745983661804,0.67679874,1804.5,1804.4,0.7887]
[1745983662000,3.0,1804.8,1804.3,9.2518869]
[1745983662001,0.8011,1804.7,1804.3,3.70980754]
[1745983662206,0.67679874,1804.5,1804.3,3.70980754]
[1745983662482,0.8011,1804.7,1804.3,3.70980754]
[1745983662601,0.67679874,1804.4,1804.3,3.70980754]
[1745983662805,0.8011,1804.7,1804.3,4.7128294]
[1745983663039,0.67679874,1804.4,1804.3,3.70980754]
[1745983663216,0.8011,1804.7,1804.3,3.70980754]
[1745983663422,0.67679874,1804.4,1804.3,3.70980754]
[1745983663618,0.8011,1804.7,1804.3,3.70980754]
[1745983663814,0.67679874,1804.4,1804.3,3.70980754]
[1745983664021,10.727,1804.9,1804.4,6.31955179]
[1745983664318,0.67679874,1804.8,1804.4,6.31955179]
[1745983664518,10.727,1804.9,1804.4,6.3749641]
[1745983664725,0.67509747,1804.7,1804.4,6.3749641]
[1745983664929,0.67509747,1804.7,1804.4,6.37496413]
[1745983665232,10.727,1804.9,1804.5,0.63749641]
[1745983665546,10.727,1804.9,1804.4,6.31955179]
[1745983665733,0.67509747,1804.8,1804.4,6.31955179]
[1745983665934,6.15,1804.9,1804.4,6.37496409]
[1745983666256,0.67509747,1804.7,1804.4,6.37496409]
[1745983666447,0.67509747,1804.7,1804.4,6.31955179]
[1745983666610,6.15,1804.9,1804.5,0.63195518]
[1745983667141,0.67509747,1804.8,1804.5,6.17364291]
[1745983667546,6.15,1804.9,1804.5,6.17364291]
[1745983667946,0.67509747,1804.8,1804.5,6.17364291]
[1745983668147,6.15,1804.9,1804.5,6.17364291]
[1745983668336,0.67509747,1804.7,1804.5,6.17364291]
[1745983668642,6.15,1804.9,1804.6,0.61736429]
[1745983668849,6.15,1804.9,1804.5,0.63195518]
[1745983669846,6.15,1804.9,1804.5,6.17365572]
[1745983670266,6.15,1804.9,1804.5,6.22906567]
[1745983670572,6.15,1804.9,1804.5,0.63195518]
[1745983671349,14.5281,1805.0,1804.5,0.63195518]
[1745983672559,14.5281,1805.0,1804.5,6.1736078]
[1745983673071,14.5281,1805.0,1804.6,0.7705]
[1745983675977,0.67445222,1804.9,1804.6,0.7705]
[1745983676180,0.67445222,1804.9,1804.6,1.46490602]
[1745983679971,0.67445222,1804.9,1804.6,7.0061616]
[1745983680178,0.67445222,1804.9,1804.6,1.46490602]
[1745983683460,0.67445222,1804.9,1804.8,5.54078014]
[1745983683784,6.15,1805.3,1804.9,5.54043704]
[1745983683990,11.5048,1805.4,1805.0,0.7547]
[1745983684366,12.72178386,1805.4,1805.0,0.7547]
[1745983684786,1.21698386,1805.2,1804.8,0.7547]
[1745983684966,1.21698386,1805.0,1804.6,0.7547]
[1745983686339,1.21698386,1805.0,1804.8,3.70980754]
[1745983687228,5.04238386,1804.9,1804.8,3.70980754]
[1745983687428,11.19238386,1804.9,1804.8,3.70980754]
[1745983688330,0.8254,1804.8,1804.3,3.70980754]
[1745983688519,7.36698386,1804.7,1804.3,3.70980754]
[1745983689595,6.15,1804.7,1804.3,3.70980754]
[1745983690939,0.62039059,1804.6,1804.3,3.70980754]
[1745983691236,6.15,1804.7,1804.3,3.70980754]
[1745983691436,0.62039059,1804.5,1804.2,0.7755]
[1745983691641,6.15,1804.7,1804.2,0.7755]
[1745983691844,0.62039059,1804.4,1804.2,0.7755]
[1745983692141,6.15,1804.7,1804.2,0.7755]
[1745983692318,0.62039059,1804.3,1804.2,0.7755]
[1745983693064,6.15,1804.7,1804.2,0.7755]
[1745983694377,0.7545,1804.5,1804.2,0.7755]
[1745983694932,0.62039059,1804.4,1804.2,0.7755]
[1745983699377,4.576,1804.6,1804.2,0.7755]
[1745983699542,0.61885717,1804.3,1804.2,0.7755]
[1745983699742,4.576,1804.6,1804.2,0.7755]
[1745983699968,0.61885717,1804.3,1804.2,0.7755]
[1745983700202,4.576,1804.6,1804.2,0.7755]
[1745983700405,0.61885717,1804.3,1804.2,0.7755]
[1745983700606,4.576,1804.6,1804.2,0.7755]
[1745983700808,0.61885717,1804.3,1804.2,0.7755]
[1745983700983,4.576,1804.6,1804.2,1.41788197]
[1745983701184,0.61885717,1804.3,1804.2,0.7755]
[1745983701396,4.576,1804.6,1804.2,0.7755]
[1745983701584,0.61885717,1804.3,1804.2,0.7755]
[1745983701902,4.576,1804.6,1804.2,0.7755]
[1745983702071,0.61885717,1804.3,1804.2,0.7755]
[1745983702273,4.576,1804.6,1804.2,1.41788197]
[1745983702474,4.576,1804.6,1804.2,0.7755]
[1745983702677,4.576,1804.6,1804.2,6.31806177]
[1745983703010,0.61885717,1804.5,1804.2,6.31806177]
[1745983707304,0.61885717,1804.5,1804.2,0.7755]
[1745983710427,6.76885717,1804.5,1804.1,0.8763]
[1745983713522,6.76885717,1804.5,1804.1,0.05]
[1745983713730,0.7779,1804.4,1804.1,0.05]
[1745983713889,0.61803149,1804.3,1804.1,0.05]
[1745983714090,0.7779,1804.4,1804.1,0.05]
[1745983714290,0.61803149,1804.3,1804.1,0.05]
[1745983714492,0.7779,1804.4,1804.1,0.05]
[1745983714717,0.61803149,1804.3,1804.1,0.05]
[1745983715020,0.7779,1804.4,1804.1,0.05]
[1745983715196,0.61803149,1804.2,1804.1,0.05]
[1745983715828,6.9279,1804.4,1804.1,0.05]
[1745983716327,0.61803149,1804.3,1804.1,0.05]
[1745983716533,6.9279,1804.4,1804.1,0.05]
[1745983716824,0.61803149,1804.3,1804.1,0.05]
[1745983717203,6.9279,1804.4,1804.1,0.05]
[1745983717690,0.61803149,1804.3,1804.1,0.05]
[1745983717890,6.9279,1804.4,1804.1,0.05]
[1745983718099,0.61803149,1804.3,1804.1,0.05]
[1745983718310,6.9279,1804.4,1804.1,0.05]
[1745983718514,0.61803149,1804.3,1804.1,0.05]
[1745983718719,6.9279,1804.4,1804.1,0.05]
[1745983718915,0.61803149,1804.3,1804.1,0.05]
[1745983719227,6.9279,1804.4,1804.1,0.05]
[1745983719431,0.61803149,1804.2,1804.1,0.05]
[1745983719923,6.9279,1804.4,1804.1,0.05]
[1745983720125,0.61803149,1804.3,1804.1,0.05]
[1745983720431,6.9279,1804.4,1804.1,0.05]
[1745983720620,0.61803149,1804.2,1804.1,0.05]
[1745983720794,6.9279,1804.4,1804.1,0.05]
[1745983720994,0.61632074,1804.2,1804.1,0.05]
[1745983721199,6.9279,1804.4,1804.1,0.05]
[1745983721706,0.61632074,1804.3,1804.1,0.05]
[1745983721894,6.9279,1804.4,1804.1,0.05]
[1745983722093,0.61632074,1804.3,1804.1,0.05]
[1745983722328,6.9279,1804.4,1804.1,0.05]
[1745983722507,0.61632074,1804.3,1804.1,0.05]
[1745983722724,6.9279,1804.4,1804.1,0.05]
[1745983723039,0.61632074,1804.3,1804.1,0.05]
[1745983723430,6.9279,1804.4,1804.1,0.05]
[1745983723626,0.61632074,1804.2,1804.1,0.05]
[1745983723833,6.9279,1804.4,1804.1,0.05]
[1745983724032,0.61632074,1804.2,1804.1,0.05]
[1745983724234,6.9279,1804.4,1804.1,0.05]
[1745983724736,0.61632074,1804.3,1804.1,0.05]
[1745983724928,6.9279,1804.4,1804.1,0.05]
[1745983725130,3.61632074,1804.3,1804.1,0.05]
[1745983727034,9.76632074,1804.3,1804.1,0.05]
[1745983732767,14.34232074,1804.3,1804.1,0.05]
[1745983741943,15.11562074,1804.3,1804.1,0.05]
[1745983744477,16.33390443,1804.3,1804.1,0.05]
[1745983745965,15.11562074,1804.3,1804.1,0.05]
[1745983751277,14.34232074,1804.3,1804.1,0.05]
[1745983753643,15.12982074,1804.3,1804.1,0.05]
[1745983754370,16.34810443,1804.3,1804.1,0.05]
[1745983758046,2.01918369,1804.2,1804.1,0.05]
[1745983758446,5.63072495,1804.2,1804.1,0.05]
[1745983759588,6.11890062,1804.2,1804.1,0.05]
[1745983762196,12.26890062,1804.2,1804.1,0.05]
[1745983778119,18.65890062,1804.2,1804.1,0.05]
[1745983778318,18.65890062,1804.2,1803.4,0.7599]
[1745983778319,3.7584,1803.9,1803.4,0.7599]
[1745983778643,11.28429834,1803.8,1803.4,0.7599]
[1745983790623,3.0,1803.6,1803.4,0.7599]
[1745983791441,0.60929834,1803.5,1803.4,0.7599]
[1745983793428,6.1,1803.8,1803.5,0.7798]
[1745983796037,0.60882601,1803.7,1803.5,0.7798]
[1745983797733,0.60882601,1803.7,1803.2,0.7687]
[1745983802617,8.56505936,1803.6,1803.1,0.05]
[1745983802852,7.573,1803.5,1803.1,0.05]
[1745983803751,7.573,1803.5,1803.1,3.75980754]
[1745983806253,6.1,1803.4,1803.1,3.75980754]
[1745983809172,6.1,1803.4,1803.1,0.05]
[1745983812897,6.1,1803.4,1803.2,0.05545677]
[1745983813070,0.60882601,1803.7,1803.4,0.8074]
[1745983813545,1.37282601,1803.7,1803.2,0.8074]
[1745983813930,1.37282601,1803.7,1803.2,1.44772395]
[1745983817983,6.1,1803.6,1803.2,1.44772395]
[1745983818158,0.60575575,1803.5,1803.2,1.44772395]
[1745983819476,0.60575575,1803.5,1803.2,0.8074]
[1745983819783,0.7553,1803.4,1803.1,0.05]
[1745983819981,0.60723208,1803.3,1803.1,0.05]
[1745983823483,6.916,1803.6,1803.1,0.05]
[1745983823686,0.60723208,1803.2,1803.1,1.3681]
[1745983823874,10.672,1803.6,1803.2,2.47455936]
[1745983824067,10.672,1803.6,1803.2,8.02014391]
[1745983824497,10.672,1803.6,1803.2,8.07559388]
[1745983824680,10.672,1803.6,1803.2,7.30747698]
[1745983824887,0.60640541,1803.5,1803.3,6.29669965]
[1745983825197,0.60640541,1803.5,1803.4,0.62966996]
[1745983825908,0.60640541,1803.5,1803.4,9.18711083]
[1745983829513,0.60640541,1803.5,1803.4,9.24255252]
[1745983830101,10.672,1803.9,1803.7,0.7605]
[1745983832411,10.672,1803.9,1803.7,6.30448465]
[1745983832617,6.1,1803.9,1803.7,7.66555083]
[1745983833616,1.70645936,1804.6,1803.7,7.66555083]
[1745983833617,4.571,1804.4,1804.1,5.54291566]
[1745983833820,11.4502,1804.5,1804.0,6.30349004]
[1745983836221,11.4502,1804.5,1803.8,6.85415198]
[1745983838321,11.4502,1804.5,1803.8,6.85414794]
[1745983838801,11.4502,1804.5,1803.9,5.5435347]
[1745983839007,11.4502,1804.5,1803.8,6.8541527]
[1745983839423,0.8224,1804.4,1803.8,0.7605]
[1745983839915,0.61230833,1804.3,1803.8,0.7605]
[1745983841922,0.61230833,1804.3,1803.8,6.30433995]
[1745983842120,0.61230833,1804.3,1803.8,8.01060024]
[1745983842309,0.61230833,1804.3,1803.9,5.54354281]
[1745983842624,3.8224,1804.4,1803.9,5.54354281]
[1745983842822,0.61319375,1804.3,1803.9,5.54354281]
[1745983843019,7.57,1804.4,1804.1,0.8036]
[1745983843197,0.61319375,1804.3,1804.1,0.8036]
[1745983843399,4.57,1804.4,1804.1,0.8036]
[1745983843614,0.61319375,1804.3,1804.1,0.8036]
[1745983843905,4.57,1804.4,1804.1,7.15737253]
[1745983844088,0.61319375,1804.2,1804.1,7.70737253]
[1745983844289,4.57,1804.4,1804.1,7.70737253]
[1745983844489,0.61319375,1804.2,1804.1,7.70737253]
[1745983844722,4.57,1804.4,1804.1,7.70737253]
[1745983845024,0.61319375,1804.3,1804.1,2.16445157]
[1745983845226,4.57,1804.4,1804.1,2.16445157]
[1745983845427,0.61319375,1804.3,1804.1,2.16445157]
[1745983845723,4.57,1804.4,1804.1,2.16445157]
[1745983845920,0.61319375,1804.2,1804.1,7.70738156]
[1745983846099,4.57,1804.4,1804.1,7.70738156]
[1745983846424,0.61319375,1804.3,1804.1,7.70738156]
[1745983846626,4.57,1804.4,1804.1,7.70738156]
[1745983846828,0.61319375,1804.3,1804.1,7.70738156]
[1745983847028,0.61319375,1804.3,1804.1,2.16445157]
[1745983847218,4.57,1804.4,1804.1,2.16445157]
[1745983847419,0.61319375,1804.3,1804.1,2.16445157]
[1745983847729,4.57,1804.4,1804.1,1.61445157]
[1745983847921,0.61319375,1804.2,1804.1,0.8036]
[1745983848123,4.57,1804.4,1804.1,0.8036]
[1745983848325,0.61319375,1804.2,1804.1,0.8036]
[1745983848493,4.57,1804.4,1804.1,0.8036]
[1745983848816,0.61319375,1804.3,1804.1,0.8036]
[1745983849016,4.57,1804.4,1804.1,1.43828031]
[1745983849216,0.61319375,1804.3,1804.1,0.85902318]
[1745983849428,4.57,1804.4,1804.1,0.85902318]
[1745983849717,0.61319375,1804.3,1804.1,0.8036]
[1745983850032,4.57,1804.4,1804.1,0.8036]
[1745983850232,0.61319375,1804.3,1804.1,0.8036]
[1745983850467,4.57,1804.4,1804.1,0.8036]
[1745983850637,0.61319375,1804.2,1804.1,0.8036]
[1745983850799,4.57,1804.4,1804.1,1.43828031]
[1745983851130,0.61319375,1804.3,1804.1,0.8036]
[1745983851432,4.57,1804.4,1804.1,0.8036]
[1745983851733,0.61319375,1804.3,1804.1,0.8036]
[1745983852031,4.57,1804.4,1804.1,0.8036]
[1745983852230,0.61319375,1804.3,1804.1,0.8036]
[1745983852532,4.57,1804.4,1804.1,0.8036]
[1745983852829,0.61319375,1804.3,1804.1,0.8036]
[1745983853032,4.57,1804.4,1804.1,0.8036]
[1745983853231,0.61319375,1804.3,1804.1,0.8036]
[1745983853524,4.57,1804.4,1804.1,0.8036]
[1745983853727,0.61319375,1804.2,1804.1,0.8036]
[1745983853907,4.57,1804.4,1804.1,1.43827121]
[1745983854111,4.57,1804.4,1804.1,0.85902318]
[1745983854318,0.61319375,1804.3,1804.1,0.85902318]
[1745983854843,0.61319375,1804.2,1804.1,0.85902318]
[1745983855033,4.57,1804.4,1804.1,0.85902318]
[1745983855232,0.61319375,1804.3,1804.1,0.85902318]
[1745983855524,0.61319375,1804.3,1804.1,1.4992306]
[1745983855728,4.57,1804.4,1804.1,1.4992306]
[1745983855935,0.61319375,1804.2,1804.1,1.4992306]
[1745983856158,4.57,1804.4,1804.1,6.98655816]
[1745983856515,0.61319375,1804.3,1804.1,6.98655816]
[1745983856836,4.57,1804.4,1804.2,0.69865582]
[1745983857022,0.61319375,1804.3,1804.2,0.69865582]
[1745983857221,4.57,1804.4,1804.2,0.69865582]
[1745983857423,0.61319375,1804.3,1804.2,0.69865582]
[1745983857633,4.57,1804.4,1804.2,0.69865582]
[1745983857836,0.61319375,1804.3,1804.1,1.44380742]
[1745983858032,4.57,1804.4,1804.1,6.98670166]
[1745983858257,4.568,1804.7,1804.2,2.31187958]
[1745983858418,4.568,1804.7,1804.3,6.33226379]
[1745983858612,4.568,1804.7,1804.4,0.63322638]
[1745983859427,4.568,1804.7,1804.2,0.7763]
[1745983859626,0.8252,1804.6,1804.1,8.65908372]
[1745983860535,0.8252,1804.6,1804.1,8.65901536]
[1745983862069,6.9252,1804.6,1804.1,8.65901536]
[1745983862761,6.9252,1804.6,1804.1,3.11626678]
[1745983863063,6.9252,1804.6,1804.2,0.31162668]
[1745983864724,6.9252,1804.6,1804.2,0.36704659]
[1745983864958,6.1,1804.6,1804.3,6.32149755]
[1745983865670,6.1,1804.6,1804.3,0.7792]
[1745983868268,6.1,1804.6,1804.3,6.32151225]
[1745983868468,6.1,1804.6,1804.3,7.53906543]
[1745983868871,6.1,1804.6,1804.4,1.3318]
[1745983869057,6.1,1804.6,1804.4,0.7818]
[1745983869260,6.1,1804.6,1804.3,1.99935318]
[1745983869574,6.1,1804.6,1804.3,7.54159972]
[1745983869878,0.61484591,1804.5,1804.4,0.75415997]
[1745983870781,0.61484591,1804.5,1804.4,7.62796839]
[1745983871181,6.1,1804.6,1804.5,5.5417013]
[1745983871369,13.668,1804.9,1804.5,5.5417013]
[1745983871855,13.668,1804.9,1804.4,7.62780165]
[1745983872055,10.668,1804.9,1804.5,6.30447194]
[1745983872848,10.668,1804.9,1804.5,0.76278017]
[1745983874083,10.668,1804.9,1804.5,6.30447995]
[1745983874264,10.668,1804.9,1804.5,6.72584041]
[1745983874782,6.1,1804.9,1804.5,6.72584041]
[1745983876450,6.1,1804.9,1804.6,7.02073942]
[1745983877092,6.1,1804.9,1804.7,5.54105334]
[1745983877395,6.1,1804.9,1804.7,5.54091704]
[1745983880693,6.1,1804.9,1804.7,11.08180928]
[1745983880875,10.667,1805.1,1804.9,5.5403596]
[1745983881182,6.1,1805.1,1805.0,0.55403596]
[1745983881901,6.1,1805.1,1805.0,0.97758984]
[1745983882253,6.1,1805.1,1805.0,0.55403596]
[1745983882453,6.1,1805.1,1804.8,6.34756544]
[1745983883887,6.1,1805.1,1804.8,6.34744134]
[1745983884186,6.1,1805.1,1804.9,5.54037371]
[1745983884686,6.1,1805.1,1804.9,5.59569062]
[1745983884895,6.1,1805.1,1805.0,6.3016662]
[1745983885190,6.1,1805.1,1805.0,7.48586182]
[1745983885393,6.1,1805.3,1805.0,7.48586182]
[1745983885688,0.62192376,1805.2,1805.0,7.48586182]
[1745983886502,0.62192376,1805.2,1805.0,7.89446098]
[1745983886792,0.62192376,1805.2,1805.1,0.7894461]
[1745983888002,0.62192376,1805.2,1805.0,1.17009916]
[1745983891096,0.62192376,1805.2,1805.0,6.71025661]
[1745983892692,0.62192376,1805.2,1805.0,1.17009916]
[1745983895560,0.62192376,1805.2,1805.0,6.71024413]
[1745983895894,0.62192376,1805.2,1805.0,6.76563989]
[1745983896072,0.62192376,1805.2,1805.1,0.67656399]
[1745983899534,0.62192376,1805.2,1804.8,0.7962]
[1745983899701,1.43442376,1805.2,1804.7,6.09105525]
[1745983900101,1.43442376,1805.2,1804.7,5.54105525]
[1745983900301,0.8125,1805.1,1804.6,0.67258404]
[1745983900615,0.7987,1804.9,1804.5,1.18414063]
[1745983900824,0.7987,1804.8,1804.4,3.70980754]
[1745983901209,0.62434085,1804.7,1804.4,3.70980754]
[1745983901749,0.62434085,1804.7,1804.4,4.11573354]
[1745983901909,0.62434085,1804.7,1804.4,3.70980754]
[1745983902108,0.62434085,1804.7,1804.5,5.91252473]
[1745983902317,0.62434085,1804.7,1804.6,5.54139421]
[1745983902529,6.1,1804.9,1804.8,6.86388014]
[1745983903009,6.72245397,1804.9,1804.8,8.6257409]
[1745983903205,6.1,1804.9,1804.8,8.6257409]
[1745983903542,6.72245397,1804.9,1804.8,10.04241159]
[1745983903928,6.72245397,1804.9,1804.8,9.98701019]
[1745983904935,6.72245397,1804.9,1804.8,10.04241039]
[1745983905322,0.62245397,1804.9,1804.8,10.04241039]
[1745983905505,0.8306,1805.4,1805.1,5.53969489]
[1745983905700,0.8306,1805.4,1805.1,6.64767104]
[1745983907343,6.1,1805.5,1805.2,5.53935439]
[1745983907637,6.1,1805.5,1805.4,6.35723873]
[1745983909943,6.1,1805.5,1805.4,0.8183]
[1745983910246,6.1,1805.5,1805.3,5.94594247]
[1745983910589,6.1,1805.5,1805.3,7.40298004]
[1745983911210,6.1,1805.7,1805.3,7.40298004]
[1745983912567,6.1,1805.7,1805.4,5.53890337]
[1745983914752,0.62781809,1805.6,1805.4,5.53890337]
[1745983915067,0.62781809,1805.6,1805.3,7.40298004]
[1745983915262,0.62781809,1805.6,1805.4,0.740298]
[1745983921449,0.62781809,1805.6,1805.3,7.40298004]
[1745983922564,0.62781809,1805.6,1805.3,12.94203911]
[1745983922734,0.62781809,1805.6,1805.3,7.40298004]
[1745983923558,0.62781809,1805.6,1805.3,5.94594247]
[1745983923761,0.8327,1805.5,1805.0,6.30361343]
[1745983923972,1.46157893,1805.5,1805.0,11.8435513]
[1745983924263,1.46157893,1805.5,1805.2,5.53943836]
[1745983924431,0.62887893,1805.5,1805.2,12.95039198]
[1745983924625,0.62887893,1805.5,1805.3,5.5392389]
[1745983924841,0.62887893,1805.5,1805.4,5.53893873]
[1745983925042,11.4967,1805.7,1805.4,5.53893873]
[1745983925261,0.62887893,1805.5,1805.3,5.59443587]
[1745983925449,11.4967,1805.7,1805.3,7.3051367]
[1745983925648,0.62840752,1805.4,1805.3,7.24975059]
[1745983925850,11.4967,1805.7,1805.3,7.24975059]
[1745983926050,0.62840752,1805.4,1805.3,7.3051366]
[1745983926256,11.4967,1805.7,1805.3,12.8441661]
[1745983926455,0.62840752,1805.4,1805.3,7.24973033]
[1745983926933,10.664,1805.7,1805.3,12.78875983]
[1745983927130,0.62840752,1805.4,1805.3,7.24973033]
[1745983927329,10.664,1805.7,1805.4,5.5388835]
[1745983927566,0.62840752,1805.6,1805.4,7.63682797]
[1745983927738,0.62840752,1805.6,1805.4,7.58144488]
[1745983931488,0.62840752,1805.6,1805.4,0.7637]
[1745983931796,1.39790752,1805.6,1805.3,5.94926143]
[1745983931975,0.62840752,1805.6,1805.3,5.94917855]
[1745983932145,0.62840752,1805.6,1805.4,5.53881308]
[1745983932490,10.664,1805.7,1805.4,5.53881308]
[1745983932788,10.664,1805.7,1805.4,6.76860224]
[1745983933971,4.564,1805.7,1805.4,6.76860224]
[1745983934187,4.564,1805.7,1805.4,12.30732594]
[1745983934390,0.62870216,1805.6,1805.5,5.53858935]
[1745983934592,0.62870216,1805.6,1805.5,6.76929957]
[1745983934773,0.7695,1805.8,1805.5,1.23071022]
[1745983934974,0.62870216,1805.6,1805.4,5.53872916]
[1745983935173,0.7695,1805.8,1805.4,5.53872916]
[1745983935486,0.62870216,1805.5,1805.3,6.75912091]
[1745983935794,0.62870216,1805.4,1805.3,1.22005656]
[1745983936082,0.62870216,1805.4,1805.3,5.94940211]
[1745983936251,0.7695,1805.8,1805.3,5.94940211]
[1745983936451,0.62870216,1805.4,1805.3,5.94940211]
[1745983936647,0.7695,1805.8,1805.3,0.41015656]
[1745983936870,0.7695,1805.8,1805.2,11.83113454]
[1745983937078,0.62864326,1805.7,1805.2,11.83113454]
[1745983937612,0.62864326,1805.7,1805.2,6.29176727]
[1745983937915,0.62864326,1805.7,1805.3,6.1683114]
[1745983938072,0.62864326,1805.7,1805.3,0.62917673]
[1745983938474,0.7997,1805.6,1805.2,5.96547499]
[1745983938904,0.62864326,1805.5,1805.2,5.96547499]
[1745983939387,0.62864326,1805.5,1805.2,6.02086207]
[1745983939573,0.62864326,1805.5,1805.2,5.96547499]
[1745983940372,0.62864326,1805.5,1805.2,7.25059111]
[1745983942717,0.62864326,1805.5,1805.1,6.335857]
[1745983943013,6.72864326,1805.5,1805.2,5.53952673]
[1745983943198,6.1,1805.5,1805.3,6.29612899]
[1745983943403,6.1,1805.5,1805.4,5.53893873]
[1745983944838,6.72811291,1805.5,1805.4,5.53893873]
[1745983944976,6.72811291,1805.5,1805.4,6.72243439]
[1745983946992,0.62811291,1805.5,1805.4,6.72243439]
[1745983947306,6.9248,1805.8,1805.4,6.72243439]
[1745983947516,0.62811291,1805.7,1805.4,6.72243439]
[1745983947815,0.62811291,1805.7,1805.4,6.72224693]
[1745983948131,0.62811291,1805.7,1805.5,0.67222469]
[1745983949816,0.62811291,1805.7,1805.5,6.2108017]
[1745983950023,0.62811291,1805.7,1805.5,7.0117017]
[1745983950312,0.62811291,1805.7,1805.5,7.06708233]
[1745983950683,0.62811291,1805.7,1805.5,7.0117017]
[1745983951298,0.62811291,1805.7,1805.5,1.47312469]
[1745983952105,0.62811291,1805.7,1805.3,6.3400258]
[1745983952297,0.62811291,1805.7,1805.3,5.5391258]
[1745983952719,0.62811291,1805.7,1805.3,9.24893334]
[1745983953025,0.62811291,1805.7,1805.3,3.70980754]
[1745983953402,0.8186,1805.6,1805.3,3.70980754]
[1745983953701,0.62899679,1805.5,1805.3,10.25396125]
[1745983953895,0.62899679,1805.5,1805.3,10.25383198]
[1745983954094,6.9186,1805.8,1805.3,15.79287087]
[1745983954291,0.62899679,1805.7,1805.3,4.71481251]
[1745983954506,0.62899679,1805.7,1805.3,3.70980754]
[1745983954507,0.8186,1805.6,1805.3,3.70980754]
[1745983954897,0.62899679,1805.5,1805.3,3.70980754]
[1745983955399,0.62899679,1805.5,1805.1,15.20062089]
[1745983955598,0.62899679,1805.5,1805.2,5.53954313]
[1745983955831,0.8186,1805.6,1805.2,5.53954313]
[1745983956430,0.62899679,1805.5,1805.1,9.66087692]
[1745983956627,0.62899679,1805.5,1805.1,11.71960624]
[1745983956834,0.7616,1805.4,1805.1,4.12124908]
[1745983956996,0.7616,1805.4,1805.1,3.70980754]
[1745983957197,0.62781826,1805.3,1805.1,3.70980754]
[1745983957510,0.62781826,1805.2,1805.1,3.70980754]